bitfinex/quotes_BTCUSD_20260117
["timestamp","ask_amount","ask_price","bid_price","bid_amount"]
[1768673813524,0.01048075,95413.0,95410.0,0.01048108]
[1768673814358,0.05240115,95418.0,95412.0,0.01048086]
[1768673814512,0.01048064,95414.0,95411.0,0.01048097]
[1768673815560,0.01048053,95415.0,95411.0,0.01048097]
[1768673815767,0.01048064,95414.0,95411.0,0.01048097]
[1768673816782,0.06288369,95415.0,95412.0,0.01048086]
[1768673816783,0.01048053,95415.0,95412.0,0.01048086]
[1768673816985,0.06279266,95415.0,95411.0,0.01048097]
[1768673818924,0.13752042,95416.0,95412.0,0.01048086]
[1768673819169,0.13752042,95416.0,95412.0,0.06288469]
[1768673819578,0.12704,95416.0,95413.0,0.06288445]
[1768673819778,0.00018717,95419.0,95414.0,0.01048064]
[1768673819985,0.12704,95418.0,95415.0,0.05240246]
[1768673820187,0.12704,95418.0,95416.0,0.01048042]
[1768673820407,0.01066726,95419.0,95416.0,0.01048042]
[1768673820605,0.12704,95418.0,95416.0,0.010402]
[1768673821035,0.01087954,95424.0,95420.0,0.01047998]
[1768673821287,0.01087954,95424.0,95419.0,0.0628801]
[1768673821492,0.01047965,95423.0,95419.0,0.06288052]
[1768673821933,0.01047965,95423.0,95419.0,0.01048009]
[1768673822139,0.00046922,95424.0,95421.0,0.01047987]
[1768673822550,0.01094876,95424.0,95421.0,0.01040146]
[1768673822944,0.06334657,95424.0,95421.0,0.01040146]
[1768673823178,0.01047965,95423.0,95418.0,0.0104802]
[1768673823379,0.01047965,95423.0,95419.0,0.01048009]
[1768673823511,0.06287819,95423.0,95419.0,0.01048009]
[1768673823710,0.01047976,95422.0,95419.0,0.01048009]
[1768673825157,0.01047998,95420.0,95416.0,0.010402]
[1768673825360,0.01047987,95421.0,95417.0,0.01048031]
[1768673825568,0.01047987,95421.0,95417.0,0.06288176]
[1768673826299,0.01047987,95421.0,95418.0,0.0104802]
[1768673827335,0.01047998,95420.0,95417.0,0.01048031]
[1768673828397,0.00046922,95424.0,95419.0,0.05240004]
[1768673828631,0.00046922,95424.0,95421.0,0.01047987]
[1768673829122,0.00046922,95424.0,95422.0,0.05239877]
[1768673829564,0.00046922,95424.0,95421.0,0.01047987]
[1768673829565,0.00046922,95424.0,95421.0,0.0628792]
[1768673830456,0.01094876,95424.0,95421.0,0.01047987]
[1768673831628,0.01047976,95422.0,95419.0,0.01048009]
[1768673831850,0.01047976,95422.0,95419.0,0.06288052]
[1768673832243,0.01047976,95422.0,95419.0,0.01048009]
[1768673832445,0.01047987,95421.0,95417.0,0.01048031]
[1768673832655,0.01048031,95417.0,95412.0,0.13748086]
[1768673832830,0.01048042,95416.0,95412.0,0.13748086]
[1768673833204,0.01038978,95416.0,95412.0,0.13748086]
[1768673833934,0.06279241,95416.0,95412.0,0.13748086]
[1768673834122,0.01038978,95416.0,95412.0,0.18988511]
[1768673834386,0.01038978,95416.0,95412.0,0.13748086]
[1768673834561,0.01048053,95415.0,95412.0,0.127]
[1768673835000,0.06288321,95415.0,95412.0,0.127]
[1768673835216,0.05240324,95414.0,95412.0,0.127]
[1768673835630,0.05240321,95414.0,95412.0,0.127]
[1768673836259,0.05240376,95413.0,95412.0,0.127]
[1768673836688,0.05240362,95414.0,95412.0,0.127]
[1768673836896,0.05240362,95414.0,95409.0,0.04192382]
[1768673836897,0.01048086,95412.0,95409.0,0.03144263]
[1768673837105,0.01048097,95411.0,95408.0,0.00050296]
[1768673837541,0.01048097,95411.0,95408.0,0.01098426]
[1768673838413,0.01048086,95412.0,95408.0,0.06339069]
[1768673839262,0.01048086,95412.0,95409.0,0.01048119]
[1768673839712,0.01048086,95412.0,95408.0,0.01098426]
[1768673839928,0.0628853,95412.0,95408.0,0.01098426]
[1768673840156,0.01048086,95412.0,95408.0,0.01098426]
[1768673840369,0.01048097,95411.0,95408.0,0.01098426]
[1768673841660,0.01039033,95411.0,95408.0,0.01098426]
[1768673842266,0.01048086,95412.0,95408.0,0.01098426]
[1768673842472,0.01048097,95411.0,95408.0,0.01098426]
[1768673842675,0.01048075,95413.0,95409.0,0.01048119]
[1768673843183,0.01048075,95413.0,95410.0,0.01048108]
[1768673844465,0.06288476,95413.0,95409.0,0.01048119]
[1768673844928,0.01048075,95413.0,95409.0,0.0628871]
[1768673845129,0.01048075,95413.0,95410.0,0.01048108]
[1768673845587,0.01048053,95415.0,95411.0,0.01048097]
[1768673845763,0.01048053,95415.0,95411.0,0.06288581]
[1768673846761,0.06288323,95415.0,95411.0,0.01048097]
[1768673847819,0.01048053,95415.0,95411.0,0.01048097]
[1768673848025,0.01048053,95415.0,95411.0,0.0628858]
[1768673849042,0.06288321,95415.0,95411.0,0.01048097]
[1768673849533,0.01048053,95415.0,95411.0,0.01048097]
[1768673850171,0.06288329,95415.0,95411.0,0.01048097]
[1768673850428,0.01048086,95412.0,95408.0,0.02196852]
[1768673850608,0.01048086,95412.0,95409.0,0.0628871]
[1768673851557,0.01048075,95413.0,95409.0,0.0628871]
[1768673851750,0.01048075,95413.0,95409.0,0.01048119]
[1768673853665,0.0628848,95413.0,95409.0,0.01048119]
[1768673853867,0.01048075,95413.0,95409.0,0.01048119]
[1768673854070,0.01048075,95413.0,95409.0,0.06288683]
[1768673854503,0.01048075,95413.0,95409.0,0.01048119]
[1768673854969,0.01048075,95413.0,95409.0,0.06288697]
[1768673855578,0.01048075,95413.0,95410.0,0.01048108]
[1768673858421,0.01048086,95412.0,95408.0,0.01148722]
[1768673858628,0.06288524,95412.0,95408.0,0.01148722]
[1768673859264,0.01048097,95411.0,95408.0,0.01148722]
[1768673859676,0.01048097,95411.0,95408.0,0.02196852]
[1768673860586,0.06288588,95411.0,95408.0,0.01148722]
[1768673860796,0.01048097,95411.0,95408.0,0.01148722]
[1768673860999,0.06288587,95411.0,95408.0,0.01148722]
[1768673861482,0.06288605,95411.0,95408.0,0.01148722]
[1768673861686,0.01048097,95411.0,95408.0,0.01148722]
[1768673864348,0.06288604,95411.0,95408.0,0.01148722]
[1768673864730,0.01048097,95411.0,95408.0,0.02196852]
[1768673865699,0.01048097,95411.0,95408.0,0.01148722]
[1768673865916,0.01048097,95411.0,95408.0,0.0114419]
[1768673866984,0.06288584,95411.0,95408.0,0.0114419]
[1768673867679,0.01048097,95411.0,95408.0,0.0114419]
[1768673868537,0.01048097,95411.0,95408.0,0.07432964]
[1768673868747,0.01048097,95411.0,95408.0,0.0219232]
[1768673868964,0.01048086,95412.0,95408.0,0.07432966]
[1768673869171,0.01048086,95412.0,95409.0,0.01048119]
[1768673871804,0.01048086,95412.0,95409.0,0.01043588]
[1768673878737,0.01048086,95412.0,95409.0,0.01039057]
[1768673878919,0.0628839,95414.0,95409.0,0.01039057]
[1768673878920,0.01048064,95414.0,95409.0,0.06279615]
[1768673879807,0.01048086,95412.0,95409.0,0.01039057]
[1768673880273,0.06288521,95412.0,95409.0,0.01039057]
[1768673880499,0.01048097,95411.0,95408.0,0.0219232]
[1768673880732,0.01048097,95411.0,95408.0,0.01139659]
[1768673880977,0.01048097,95411.0,95408.0,0.01135128]
[1768673881218,0.06288597,95411.0,95408.0,0.01135128]
[1768673882326,0.01048097,95411.0,95408.0,0.01135128]
[1768673883359,0.06288608,95411.0,95408.0,0.01135128]
[1768673883571,0.01048097,95411.0,95408.0,0.01135128]
[1768673887147,0.01048097,95411.0,95408.0,0.02183258]
[1768673890101,0.01048097,95411.0,95408.0,0.07423908]
[1768673890310,0.01048097,95411.0,95408.0,0.07387206]
[1768673892510,0.01048086,95412.0,95408.0,0.07387206]
[1768673893902,0.01048086,95412.0,95408.0,0.07382675]
[1768673894470,0.06288467,95413.0,95408.0,0.07382675]
[1768673894471,0.01048075,95413.0,95410.0,0.01048108]
[1768673894878,0.01048064,95414.0,95410.0,0.06288628]
[1768673895425,0.01048064,95414.0,95411.0,0.01048097]
[1768673896720,0.01048053,95415.0,95411.0,0.06288551]
[1768673896939,0.01048053,95415.0,95412.0,0.01048086]
[1768673899494,0.01048064,95414.0,95409.0,0.01048119]
[1768673899898,0.01048075,95413.0,95410.0,0.01048108]
[1768673900419,0.01048075,95413.0,95410.0,0.06288646]
[1768673900995,0.01048064,95414.0,95410.0,0.06288646]
[1768673901365,0.01048064,95414.0,95412.0,0.00034903]
[1768673901565,0.01048064,95414.0,95410.0,0.06288646]
[1768673902022,0.01048064,95414.0,95413.0,0.00034453]
[1768673902192,0.01048064,95414.0,95413.0,0.00029922]
[1768673903887,0.01048053,95415.0,95413.0,0.00029922]
[1768673904070,0.01048053,95415.0,95412.0,0.01048086]
[1768673905905,0.01048064,95414.0,95410.0,0.01048108]
[1768673906094,0.01048075,95413.0,95410.0,0.01048108]
[1768673906729,0.01048064,95414.0,95410.0,0.06288643]
[1768673909299,0.01048064,95414.0,95411.0,0.01048097]
[1768673910141,0.01048064,95414.0,95411.0,0.0628858]
[1768673910801,0.01048053,95415.0,95411.0,0.0628858]
[1768673912528,0.01048053,95415.0,95411.0,0.01048097]
[1768673913163,0.06288331,95415.0,95411.0,0.01048097]
[1768673913364,0.01048075,95413.0,95409.0,0.01048119]
[1768673913940,0.01048075,95413.0,95410.0,0.01048108]
[1768673914409,0.01048075,95413.0,95410.0,0.06288643]
[1768673914791,0.01048053,95415.0,95411.0,0.01048097]
[1768673915206,0.01048053,95415.0,95414.0,0.00029472]
[1768673915411,0.06288319,95415.0,95414.0,0.00029472]
[1768673915793,0.06288319,95415.0,95414.0,0.00024941]
[1768673917370,0.01048053,95415.0,95414.0,0.00024941]
[1768673918852,0.0628846,95413.0,95409.0,0.01048119]
[1768673919063,0.01048075,95413.0,95409.0,0.06288711]
[1768673919264,0.01048086,95412.0,95409.0,0.01048119]
[1768673919645,0.01048075,95413.0,95409.0,0.01048119]
[1768673920111,0.01048075,95413.0,95410.0,0.06288644]
[1768673922005,0.01048075,95413.0,95408.0,0.01093895]
[1768673922212,0.01048086,95412.0,95409.0,0.01048119]
[1768673922418,0.01048075,95413.0,95410.0,0.06288635]
[1768673922982,0.01048064,95414.0,95410.0,0.06288635]
[1768673923365,0.01048064,95414.0,95410.0,0.01048108]
[1768673923776,0.01048064,95414.0,95410.0,0.06288638]
[1768673924359,0.01048064,95414.0,95411.0,0.01048097]
[1768673926955,0.01048075,95413.0,95410.0,0.01048108]
[1768673929556,0.01048086,95412.0,95408.0,0.07382659]
[1768673931323,0.01048097,95411.0,95408.0,0.01093895]
[1768673931535,0.01048097,95411.0,95408.0,0.01089364]
[1768673931770,0.01048097,95411.0,95408.0,0.02137494]
[1768673931981,0.01048086,95412.0,95408.0,0.07378127]
[1768673932157,0.01048086,95412.0,95409.0,0.01048119]
[1768673936901,0.01048086,95412.0,95409.0,0.01043589]
[1768673937801,0.01048086,95412.0,95409.0,0.01039059]
[1768673942633,0.01048075,95413.0,95409.0,0.01039059]
[1768673942972,0.01048064,95414.0,95410.0,0.01048108]
[1768673943889,0.01048064,95414.0,95410.0,0.06288639]
[1768673945521,0.01048064,95414.0,95411.0,0.01048097]
[1768673952291,0.01048064,95414.0,95411.0,0.01043567]
[1768673954298,0.01048053,95415.0,95412.0,0.01048086]
[1768673954506,0.01048064,95414.0,95411.0,0.01043567]
[1768673957171,0.01048064,95414.0,95411.0,0.06284049]
[1768673957830,0.01048053,95415.0,95412.0,0.01048086]
[1768673959639,0.01048053,95415.0,95412.0,0.01043556]
[1768673966114,0.01048053,95415.0,95412.0,0.06283984]
[1768673966318,0.01048053,95415.0,95412.0,0.01039026]
[1768673967175,0.01048031,95417.0,95413.0,0.01048075]
[1768673967392,0.06288193,95417.0,95413.0,0.01048075]
[1768673967597,0.01048031,95417.0,95413.0,0.01048075]
[1768673969368,0.01048031,95417.0,95414.0,0.01048064]
[1768673974606,0.0104802,95418.0,95415.0,0.01048053]
[1768673975004,0.01047998,95420.0,95416.0,0.01048042]
[1768673975489,0.01048009,95419.0,95416.0,0.01048042]
[1768673976149,0.06288059,95419.0,95416.0,0.01048042]
[1768673976358,0.06288059,95419.0,95415.0,0.01048053]
[1768673976801,0.01048009,95419.0,95415.0,0.01048053]
[1768673977028,0.01047998,95420.0,95416.0,0.06288231]
[1768673977246,0.01047998,95420.0,95416.0,0.01048042]
[1768673978182,0.01047976,95422.0,95418.0,0.05240079]
[1768673978398,0.01047976,95422.0,95418.0,0.05235549]
[1768673978610,0.01047976,95422.0,95417.0,0.05240144]
[1768673979252,0.01047976,95422.0,95419.0,0.01048009]
[1768673980085,0.01047976,95422.0,95418.0,0.0104802]
[1768673981590,0.06287901,95422.0,95418.0,0.0104802]
[1768673981874,0.01047987,95421.0,95418.0,0.0104802]
[1768673982091,0.06287926,95421.0,95418.0,0.0104802]
[1768673982310,0.06287926,95421.0,95417.0,0.01048031]
[1768673983070,0.01047987,95421.0,95417.0,0.06288183]
[1768673983453,0.01047987,95421.0,95417.0,0.01048031]
[1768673983650,0.01047998,95420.0,95416.0,0.01048042]
[1768673985336,0.01048009,95419.0,95416.0,0.01048042]
[1768673987114,0.0104802,95418.0,95415.0,0.01048053]
[1768673987320,0.06288122,95418.0,95413.0,0.0628841]
[1768673987544,0.0104802,95418.0,95414.0,0.01048064]
[1768673988857,0.06288121,95418.0,95414.0,0.01043534]
[1768673989353,0.0104802,95418.0,95414.0,0.01043534]
[1768673989797,0.0104802,95418.0,95414.0,0.01039004]
[1768673990206,0.0104802,95418.0,95414.0,0.01034474]
[1768673992253,0.0104802,95418.0,95414.0,0.06274781]
[1768673993076,0.0104802,95418.0,95415.0,0.01048053]
[1768673993283,0.01048009,95419.0,95415.0,0.06288318]
[1768673993918,0.01048009,95419.0,95416.0,0.01048042]
[1768673994620,0.01047998,95420.0,95417.0,0.01048031]
[1768673996870,0.01047998,95420.0,95417.0,0.01043501]
[1768674000423,0.01048009,95419.0,95415.0,0.01048053]
[1768674000653,0.06288064,95419.0,95415.0,0.01048053]
[1768674000859,0.01048009,95419.0,95416.0,0.01048042]
[1768674002443,0.01047998,95420.0,95416.0,0.06288237]
[1768674002645,0.01048009,95419.0,95416.0,0.01048042]
[1768674003050,0.01047998,95420.0,95416.0,0.01048042]
[1768674003300,0.01047998,95420.0,95417.0,0.01048031]
[1768674003895,0.01047998,95420.0,95417.0,0.06288182]
[1768674004448,0.01047998,95420.0,95417.0,0.06283652]
[1768674005461,0.03310981,95420.0,95417.0,0.06283652]
[1768674006151,0.03310981,95420.0,95417.0,0.01043501]
[1768674007407,0.01047998,95420.0,95417.0,0.01043501]
[1768674008269,0.01047976,95422.0,95418.0,0.0104802]
[1768674008470,0.01047976,95422.0,95418.0,0.01043491]
[1768674009624,0.06287904,95422.0,95418.0,0.01043491]
[1768674010552,0.01047987,95421.0,95418.0,0.01043491]
[1768674011093,0.01047987,95421.0,95418.0,0.06283586]
[1768674011310,0.01047976,95422.0,95418.0,0.06283586]
[1768674011514,0.00048044,95423.0,95419.0,0.06288055]
[1768674012381,0.00048044,95423.0,95419.0,0.06283526]
[1768674012599,0.00048044,95423.0,95420.0,0.01047998]
[1768674014008,0.00048044,95423.0,95420.0,0.06287987]
[1768674014622,0.00048044,95423.0,95419.0,0.0628804]
[1768674015033,0.00048044,95423.0,95420.0,0.01047998]
[1768674015873,0.00048044,95423.0,95420.0,0.06287984]
[1768674016372,0.00048044,95423.0,95421.0,0.05239929]
[1768674017007,0.00048044,95423.0,95420.0,0.06287985]
[1768674019566,0.00048044,95423.0,95420.0,0.01047998]
[1768674020074,0.00048044,95423.0,95420.0,0.06287979]
[1768674022228,0.00048044,95423.0,95420.0,0.01047998]
[1768674022412,0.06287866,95422.0,95418.0,0.01043491]
[1768674024534,0.01047998,95420.0,95416.0,0.06288249]
[1768674025669,0.06287992,95420.0,95416.0,0.01048042]
[1768674026285,0.01048009,95419.0,95416.0,0.01048042]
[1768674027648,0.01048009,95419.0,95416.0,0.06288249]
[1768674028764,0.01047998,95420.0,95416.0,0.06288249]
[1768674029231,0.06287894,95422.0,95418.0,0.0104802]
[1768674029669,0.01047976,95422.0,95418.0,0.06288111]
[1768674031476,0.01047976,95422.0,95419.0,0.01048009]
[1768674033713,0.00048044,95423.0,95420.0,0.01047998]
[1768674037721,0.00048044,95423.0,95420.0,0.06287974]
[1768674037941,0.01047976,95422.0,95418.0,0.0104802]
[1768674038393,0.01096009,95423.0,95419.0,0.06288055]
[1768674038627,0.00048044,95423.0,95420.0,0.06287939]
[1768674038846,0.00048044,95423.0,95420.0,0.01047998]
[1768674039067,0.00048044,95423.0,95420.0,0.06287977]
[1768674040274,0.00048044,95423.0,95420.0,0.06287984]
[1768674041155,0.00048044,95423.0,95421.0,0.05239936]
[1768674042357,0.00048044,95423.0,95422.0,0.05239881]
[1768674042583,0.00048044,95423.0,95421.0,0.0523993]
[1768674042824,0.00048044,95423.0,95421.0,0.05239886]
[1768674044173,0.00048044,95423.0,95422.0,0.05239881]
[1768674046624,0.0002,95426.0,95423.0,0.01047965]
[1768674046872,0.00024715,95426.0,95425.0,0.05239717]
[1768674047735,0.00024715,95426.0,95423.0,0.01047965]
[1768674048256,0.00024715,95426.0,95423.0,0.06287782]
[1768674048682,0.01072647,95426.0,95422.0,0.01047976]
[1768674049780,0.01072647,95426.0,95422.0,0.06287857]
[1768674049992,0.01072647,95426.0,95423.0,0.01047965]
[1768674052977,0.01072647,95426.0,95423.0,0.06287783]
[1768674053552,0.00024715,95426.0,95423.0,0.06287783]
[1768674053953,0.00024715,95426.0,95422.0,0.01047976]
[1768674054356,0.01072647,95426.0,95423.0,0.01047965]
[1768674061695,0.00024715,95426.0,95423.0,0.01047965]
[1768674061910,0.00024715,95426.0,95424.0,0.05239771]
[1768674062133,0.00024715,95426.0,95425.0,0.05239717]
[1768674062353,0.00024715,95426.0,95423.0,0.01047965]
[1768674062769,0.00024715,95426.0,95424.0,0.05239765]
[1768674063189,0.0002,95430.0,95426.0,0.01047932]
[1768674063395,0.0002,95430.0,95426.0,0.06287552]
[1768674064366,0.0002,95430.0,95425.0,0.01047943]
[1768674064367,0.01047899,95429.0,95425.0,0.01047943]
[1768674064705,0.01047899,95429.0,95425.0,0.01028798]
[1768674065147,0.0104791,95428.0,95423.0,0.01047965]
[1768674065454,0.0104791,95428.0,95425.0,0.01047943]
[1768674067312,0.0104791,95428.0,95425.0,0.06287653]
[1768674067452,0.01047899,95429.0,95425.0,0.06287653]
[1768674069882,0.01047899,95429.0,95426.0,0.01047932]
[1768674070298,0.01047899,95429.0,95426.0,0.06287582]
[1768674070510,0.0002,95430.0,95427.0,0.01047921]
[1768674070721,0.0002,95432.0,95430.0,0.05239442]
[1768674070929,0.0002,95432.0,95430.0,0.05239402]
[1768674071550,0.0002,95432.0,95429.0,0.01047899]
[1768674073425,0.0002,95432.0,95426.0,0.01047932]
[1768674073426,0.01047888,95430.0,95426.0,0.01047932]
[1768674073639,0.06287405,95429.0,95425.0,0.01047943]
[1768674073861,0.01047932,95426.0,95420.0,0.02095842]
[1768674074058,0.05239811,95424.0,95420.0,0.01047998]
[1768674074476,0.01047998,95420.0,95413.0,0.01048075]
[1768674074688,0.0104802,95418.0,95415.0,0.01048053]
[1768674074899,0.06288125,95418.0,95414.0,0.01100826]
[1768674075101,0.0104802,95418.0,95414.0,0.01100826]
[1768674075326,0.06288143,95418.0,95414.0,0.01100826]
[1768674075549,0.0104802,95418.0,95414.0,0.01100826]
[1768674076405,0.01048031,95417.0,95414.0,0.01100826]
[1768674076743,0.05240211,95416.0,95414.0,0.00052762]
[1768674076969,0.062882,95417.0,95414.0,0.00052762]
[1768674078004,0.01048031,95417.0,95414.0,0.00052762]
[1768674078205,0.0104802,95418.0,95414.0,0.01100826]
[1768674078779,0.06287999,95420.0,95415.0,0.01048053]
[1768674079253,0.01048009,95419.0,95415.0,0.01048053]
[1768674081445,0.01048009,95419.0,95415.0,0.0628829]
[1768674082476,0.01048009,95419.0,95416.0,0.01048042]
[1768674085619,0.0104802,95418.0,95414.0,0.01100826]
[1768674086762,0.06288123,95418.0,95414.0,0.01100826]
[1768674087896,0.0104802,95418.0,95414.0,0.01100826]
[1768674088198,0.06288194,95417.0,95414.0,0.01100826]
[1768674088838,0.01048031,95417.0,95414.0,0.01100826]
[1768674089193,0.062882,95417.0,95414.0,0.01100826]
[1768674090574,0.01048031,95417.0,95414.0,0.01100826]
[1768674094642,0.01048031,95417.0,95415.0,0.01048031]
[1768674096550,0.01048009,95419.0,95415.0,0.02096084]
[1768674097141,0.06288145,95418.0,95414.0,0.01100826]
[1768674097360,0.06288145,95418.0,95414.0,0.02148835]
[1768674098182,0.01048031,95417.0,95414.0,0.02148835]
[1768674100104,0.06288208,95417.0,95414.0,0.01100771]
[1768674102907,0.01048031,95417.0,95414.0,0.01100771]
[1768674103113,0.01048031,95417.0,95414.0,0.02148835]
[1768674103333,0.0104802,95418.0,95414.0,0.02148835]
[1768674107859,0.06288236,95417.0,95414.0,0.01100771]
[1768674108061,0.0524026,95416.0,95414.0,0.01100771]
[1768674108969,0.0524026,95416.0,95412.0,0.13748086]
[1768674108970,0.06288324,95415.0,95412.0,0.127]
[1768674109182,0.01048053,95415.0,95412.0,0.12706922]
[1768674110293,0.01048053,95415.0,95412.0,0.13755008]
[1768674113509,0.01048031,95417.0,95413.0,0.06288447]
[1768674114988,0.01048031,95417.0,95413.0,0.01048075]
[1768674115205,0.062882,95417.0,95413.0,0.01048075]
[1768674119186,0.01048031,95417.0,95413.0,0.01048075]
[1768674119964,0.01048031,95417.0,95413.0,0.06288447]
[1768674120166,0.01048031,95417.0,95413.0,0.01048075]
[1768674120359,0.06288196,95417.0,95413.0,0.01048075]
[1768674122899,0.01048042,95416.0,95413.0,0.01048075]
[1768674123378,0.06288268,95416.0,95412.0,0.13755008]
[1768674123615,0.01048053,95415.0,95412.0,0.13755008]
[1768674124310,0.01048053,95415.0,95412.0,0.12706922]
[1768674124549,0.06288319,95415.0,95412.0,0.12706922]
[1768674124782,0.01048053,95415.0,95412.0,0.12706922]
[1768674125301,0.06288356,95415.0,95412.0,0.12706922]
[1768674128934,0.01048053,95415.0,95412.0,0.12706922]
[1768674129164,0.06288337,95415.0,95412.0,0.12706922]
[1768674129377,0.01048053,95415.0,95412.0,0.12706922]
[1768674132782,0.01048053,95415.0,95412.0,0.13755008]
[1768674135601,0.01048031,95417.0,95414.0,0.01048064]
[1768674135817,0.0104802,95418.0,95415.0,0.01048053]
[1768674135997,0.01048009,95419.0,95416.0,0.01048042]
[1768674137601,0.01048009,95419.0,95416.0,0.01028486]
[1768674141604,0.01048009,95419.0,95415.0,0.01048053]
[1768674141605,0.06288075,95419.0,95415.0,0.01048053]
[1768674141808,0.01048009,95419.0,95415.0,0.06288318]
[1768674143015,0.06288126,95418.0,95414.0,0.01048064]
[1768674144263,0.06288187,95417.0,95413.0,0.01048075]
[1768674144476,0.01048031,95417.0,95414.0,0.01048064]
[1768674145498,0.01048031,95417.0,95414.0,0.06288375]
[1768674146118,0.01048031,95417.0,95414.0,0.01048064]
[1768674146324,0.01048031,95417.0,95414.0,0.06288381]
[1768674146530,0.01048031,95417.0,95413.0,0.01048075]
[1768674147366,0.01048042,95416.0,95413.0,0.01048075]
[1768674148870,0.01048031,95417.0,95413.0,0.01048075]
[1768674149117,0.01048031,95417.0,95413.0,0.06288432]
[1768674149468,0.01048031,95417.0,95414.0,0.06288382]
[1768674151001,0.0104802,95418.0,95414.0,0.06288382]
[1768674151665,0.0104802,95418.0,95414.0,0.01048064]
[1768674152218,0.06288139,95418.0,95414.0,0.01048064]
[1768674153073,0.01048031,95417.0,95414.0,0.01048064]
[1768674153948,0.01048031,95417.0,95414.0,0.01028508]
[1768674157618,0.0628816,95418.0,95414.0,0.01028508]
[1768674157817,0.0104802,95418.0,95414.0,0.01028508]
[1768674158178,0.0104802,95418.0,95414.0,0.06268825]
[1768674158384,0.06288133,95418.0,95414.0,0.01028508]
[1768674158731,0.0104802,95418.0,95414.0,0.01028508]
[1768674159218,0.06288124,95418.0,95414.0,0.01028508]
[1768674161431,0.01048031,95417.0,95414.0,0.01028508]
[1768674169439,0.0104802,95418.0,95414.0,0.06268815]
[1768674172442,0.0104802,95418.0,95415.0,0.01048053]
[1768674172643,0.01048009,95419.0,95415.0,0.01048053]
[1768674173812,0.01048009,95419.0,95416.0,0.01048042]
[1768674174563,0.06287934,95421.0,95416.0,0.06288244]
[1768674174722,0.01047987,95421.0,95417.0,0.06288147]
[1768674176344,0.06287803,95423.0,95418.0,0.06288113]
[1768674176772,0.01047976,95422.0,95418.0,0.0104802]
[1768674177830,0.01047976,95422.0,95418.0,0.06288117]
[1768674180277,0.01047976,95422.0,95416.0,0.01048042]
[1768674180511,0.05239968,95421.0,95416.0,0.01048042]
[1768674180917,0.05239968,95421.0,95416.0,0.06288242]
[1768674181125,0.01047998,95420.0,95417.0,0.01048031]
[1768674182493,0.01047998,95420.0,95416.0,0.01048042]
[1768674182494,0.01048009,95419.0,95416.0,0.01048042]
[1768674182696,0.0104802,95418.0,95415.0,0.01048053]
[1768674184220,0.06288123,95418.0,95415.0,0.01048053]
[1768674184442,0.06288123,95418.0,95414.0,0.01028508]
[1768674184646,0.01048031,95417.0,95414.0,0.01028508]
[1768674189880,0.0104802,95418.0,95414.0,0.06268826]
[1768674190497,0.01048031,95417.0,95414.0,0.01028508]
[1768674191125,0.0104802,95418.0,95415.0,0.01048053]
[1768674191833,0.01048009,95419.0,95415.0,0.06288301]
[1768674194071,0.01047998,95420.0,95416.0,0.01048042]
[1768674194492,0.06287994,95420.0,95416.0,0.01048042]
[1768674195090,0.01047998,95420.0,95416.0,0.01048042]
[1768674195526,0.06288013,95420.0,95416.0,0.01048042]
[1768674196198,0.01047987,95421.0,95418.0,0.0104802]
[1768674197574,0.01047965,95423.0,95419.0,0.01048009]
[1768674197815,0.01047965,95423.0,95420.0,0.01047998]
[1768674198466,0.00049392,95426.0,95421.0,0.01047987]
[1768674198882,0.00049392,95426.0,95423.0,0.05239826]
[1768674199304,0.00049392,95426.0,95423.0,0.06287791]
[1768674199557,0.00049392,95426.0,95423.0,0.01047965]
[1768674199760,0.01097324,95426.0,95423.0,0.01047965]
[1768674200193,0.00049392,95426.0,95423.0,0.01047965]
[1768674200431,0.01048053,95428.0,95424.0,0.01047954]
[1768674200909,0.01048053,95428.0,95424.0,0.0628772]
[1768674201321,0.01048053,95428.0,95425.0,0.01047943]
[1768674202872,0.01048053,95428.0,95425.0,0.06287648]
[1768674204221,0.01038991,95428.0,95425.0,0.06287648]
[1768674205799,0.02086901,95428.0,95424.0,0.01047954]
[1768674206215,0.01038991,95428.0,95425.0,0.01047943]
[1768674207063,0.02086901,95428.0,95424.0,0.01047954]
[1768674207269,0.01047921,95427.0,95423.0,0.01047965]
[1768674208194,0.01047921,95427.0,95424.0,0.01047954]
[1768674208404,0.01038991,95428.0,95425.0,0.01047943]
[1768674209724,0.01038991,95428.0,95426.0,0.05239626]
[1768674211642,0.01038991,95428.0,95425.0,0.01047943]
[1768674211643,0.0004,95433.0,95427.0,0.01047921]
[1768674211976,0.0004,95433.0,95429.0,0.01047899]
[1768674212219,0.1274,95433.0,95430.0,0.05239431]
[1768674212421,0.13787855,95433.0,95429.0,0.01047899]
[1768674213259,0.19027175,95433.0,95429.0,0.01047899]
[1768674213986,0.01067866,95432.0,95429.0,0.01047899]
[1768674215273,0.06307222,95432.0,95428.0,0.0104791]
[1768674215652,0.01047877,95431.0,95428.0,0.0104791]
[1768674217110,0.01067866,95432.0,95428.0,0.0104791]
[1768674217549,0.01067866,95432.0,95429.0,0.01047899]
[1768674219382,0.01047877,95431.0,95426.0,0.0628759]
[1768674219785,0.0628727,95431.0,95426.0,0.0628759]
[1768674220004,0.01047888,95430.0,95426.0,0.01047932]
[1768674220198,0.01047877,95431.0,95427.0,0.01047921]
[1768674220383,0.01047877,95431.0,95427.0,0.06287486]
[1768674220968,0.01047877,95431.0,95427.0,0.01047921]
[1768674221177,0.01047888,95430.0,95426.0,0.01047932]
[1768674221663,0.06287396,95429.0,95425.0,0.01047943]
[1768674221867,0.0104791,95428.0,95425.0,0.01047943]
[1768674223903,0.06287464,95428.0,95425.0,0.01047943]
[1768674224111,0.06287464,95428.0,95424.0,0.01047954]
[1768674225456,0.0104791,95428.0,95424.0,0.06287719]
[1768674225888,0.0104791,95428.0,95425.0,0.06287658]
[1768674226312,0.0104791,95428.0,95425.0,0.01047943]
[1768674226515,0.0104791,95428.0,95425.0,0.06287659]
[1768674226722,0.0104791,95428.0,95425.0,0.01047943]
[1768674228213,0.0628747,95428.0,95425.0,0.01047943]
[1768674229922,0.0628747,95428.0,95425.0,0.01028408]
[1768674230800,0.0628747,95428.0,95425.0,0.01008875]
[1768674231346,0.0104791,95428.0,95425.0,0.01008875]
[1768674231880,0.01047899,95429.0,95425.0,0.01008875]
[1768674232209,0.01047899,95429.0,95426.0,0.06287592]
[1768674232406,0.01047888,95430.0,95427.0,0.01047921]
[1768674234715,0.01047888,95430.0,95427.0,0.0628752]
[1768674235118,0.01047877,95431.0,95427.0,0.0628752]
[1768674235323,0.01047877,95431.0,95428.0,0.0104791]
[1768674240419,0.01047877,95431.0,95428.0,0.06287454]
[1768674241111,0.01047877,95431.0,95428.0,0.0104791]
[1768674242466,0.0002,95432.0,95429.0,0.01047899]
[1768674242890,0.0002,95432.0,95429.0,0.06287395]
[1768674243796,0.00010936,95432.0,95429.0,0.06287395]
[1768674244012,0.00010936,95432.0,95430.0,0.05239438]
[1768674244213,0.00010936,95432.0,95430.0,0.05219903]
[1768674244791,0.01058802,95432.0,95427.0,0.01047921]
[1768674244998,0.01058802,95432.0,95428.0,0.0104791]
[1768674245615,0.01058802,95432.0,95428.0,0.01028377]
[1768674245813,0.06298135,95432.0,95428.0,0.01028377]
[1768674246310,0.01058802,95432.0,95428.0,0.06267925]